bitfinex/quotes_BTCUSD_20240921
["timestamp","ask_amount","ask_price","bid_price","bid_amount"]
[1726932369774,0.0037219,63245.0,63244.0,1.51818495]
[1726932370598,0.0045479,63245.0,63244.0,1.51818495]
[1726932371087,0.0045479,63245.0,63244.0,1.50418495]
[1726932371292,0.0045479,63245.0,63244.0,1.49018495]
[1726932371460,0.0045479,63245.0,63244.0,1.50418495]
[1726932371792,0.0045479,63245.0,63244.0,1.51718495]
[1726932372170,0.0045479,63245.0,63244.0,1.50418495]
[1726932372403,0.0045479,63245.0,63244.0,1.49018495]
[1726932372603,0.0045479,63245.0,63244.0,1.50418495]
[1726932372808,0.0030479,63245.0,63244.0,1.51818495]
[1726932373152,0.0030479,63245.0,63244.0,1.49018495]
[1726932374554,0.0030479,63245.0,63244.0,1.50318495]
[1726932374800,0.0030479,63245.0,63244.0,1.51718495]
[1726932375703,0.0030479,63245.0,63244.0,1.50318495]
[1726932375943,0.0030479,63245.0,63244.0,1.49018495]
[1726932376202,0.0030479,63245.0,63244.0,1.50218495]
[1726932376425,0.0030479,63245.0,63244.0,1.51318495]
[1726932377959,0.0030479,63245.0,63244.0,1.33913128]
[1726932378828,0.0030479,63245.0,63244.0,1.35013128]
[1726932382720,0.0030479,63245.0,63244.0,1.35178328]
[1726932384405,0.0030479,63245.0,63244.0,0.93934828]
[1726932398116,0.0030479,63245.0,63244.0,0.81826554]
[1726932398564,0.0030479,63245.0,63244.0,0.93934828]
[1726932399212,0.0030479,63245.0,63244.0,0.94961132]
[1726932400398,0.0030479,63245.0,63244.0,1.04911132]
[1726932407268,0.0030479,63245.0,63244.0,1.36534632]
[1726932416117,0.0030479,63245.0,63244.0,1.36615914]
[1726932420536,0.0030479,63245.0,63244.0,1.2450764]
[1726932420746,0.0030479,63245.0,63244.0,1.36615914]
[1726932422789,0.0030479,63245.0,63244.0,1.52921281]
[1726932437833,0.0030479,63245.0,63244.0,1.51821281]
[1726932438051,0.0030479,63245.0,63244.0,1.52921281]
[1726932438284,0.0030479,63245.0,63244.0,1.51721281]
[1726932438624,0.0030479,63245.0,63244.0,1.52921281]
[1726932441723,0.0030479,63245.0,63244.0,1.51821281]
[1726932441948,0.0030479,63245.0,63244.0,1.50621281]
[1726932442202,0.0030479,63245.0,63244.0,1.51821281]
[1726932442383,0.0030479,63245.0,63244.0,1.53121281]
[1726932444670,0.0030479,63245.0,63244.0,1.95194781]
[1726932444871,0.001652,63252.0,63251.0,0.8135]
[1726932445086,0.001652,63252.0,63251.0,1.78715367]
[1726932445295,0.001652,63252.0,63251.0,1.80111183]
[1726932446813,0.001652,63252.0,63251.0,1.81511183]
[1726932447720,0.001652,63252.0,63251.0,1.82911183]
[1726932448669,0.001652,63252.0,63251.0,1.81511183]
[1726932448920,0.001652,63252.0,63251.0,2.14531183]
[1726932449188,0.001652,63252.0,63251.0,1.86761125]
[1726932449450,0.001652,63252.0,63251.0,1.85361125]
[1726932449702,0.001652,63252.0,63251.0,1.86761125]
[1726932449978,0.001652,63252.0,63251.0,1.85361125]
[1726932450448,0.001652,63252.0,63251.0,1.86761125]
[1726932450691,0.001652,63252.0,63251.0,1.85361125]
[1726932451241,0.001652,63252.0,63251.0,1.86761125]
[1726932451679,0.001652,63252.0,63251.0,1.83961125]
[1726932451925,0.001652,63252.0,63251.0,1.85361125]
[1726932452182,0.001652,63252.0,63251.0,1.86761125]
[1726932452420,0.001652,63252.0,63251.0,1.85361125]
[1726932452666,0.001652,63252.0,63251.0,1.86761125]
[1726932453149,0.001652,63252.0,63251.0,1.97469399]
[1726932453386,0.001652,63252.0,63251.0,1.86761125]
[1726932453583,0.001652,63252.0,63251.0,1.97469399]
[1726932454096,0.001652,63252.0,63251.0,1.98869399]
[1726932454331,0.0031452,63259.0,63258.0,0.91149474]
[1726932454801,0.0031452,63259.0,63258.0,1.24155644]
[1726932455105,0.0031452,63259.0,63258.0,0.92539144]
[1726932455773,0.0031452,63259.0,63258.0,0.95039144]
[1726932456266,0.0031452,63259.0,63258.0,0.8293087]
[1726932456695,0.0031452,63259.0,63258.0,1.1454737]
[1726932456906,0.0031452,63259.0,63258.0,1.35955644]
[1726932457117,0.0031452,63259.0,63258.0,1.34655644]
[1726932457539,0.0031452,63259.0,63258.0,1.33455644]
[1726932457968,0.0031452,63259.0,63258.0,1.34555644]
[1726932458393,0.0031452,63259.0,63258.0,1.34655644]
[1726932458832,0.0031452,63259.0,63258.0,1.34555644]
[1726932459253,0.0031452,63259.0,63258.0,1.35755644]
[1726932461865,0.0031452,63259.0,63258.0,1.38055644]
[1726932464495,0.0039712,63259.0,63258.0,1.38055644]
[1726932471340,0.0039712,63259.0,63258.0,1.54361011]
[1726932471588,0.0039712,63259.0,63258.0,1.94277511]
[1726932472057,0.0037219,63264.0,63263.0,0.81335]
[1726932472304,0.0037219,63264.0,63263.0,1.03163274]
[1726932472531,0.0037219,63264.0,63263.0,1.34777274]
[1726932472764,0.0037219,63264.0,63263.0,1.23685807]
[1726932473021,0.0037219,63264.0,63263.0,1.36169175]
[1726932474256,0.0037219,63264.0,63263.0,1.37069175]
[1726932474939,0.0037219,63264.0,63263.0,1.37869175]
[1726932475640,0.0037219,63264.0,63263.0,1.36969175]
[1726932475887,0.0037219,63264.0,63263.0,1.37869175]
[1726932476351,0.0037219,63264.0,63263.0,1.36969175]
[1726932476576,0.0037219,63264.0,63263.0,1.37169175]
[1726932476790,0.0037219,63264.0,63263.0,1.37969175]
[1726932477025,0.0045479,63264.0,63263.0,1.37969175]
[1726932477250,0.0045479,63264.0,63263.0,1.37169175]
[1726932477704,0.0045479,63264.0,63263.0,1.38069175]
[1726932480557,0.0045479,63264.0,63263.0,1.25960901]
[1726932481987,0.0045479,63264.0,63263.0,0.84626901]
[1726932484482,0.0045479,63264.0,63263.0,1.25390901]
[1726932484686,0.0045479,63264.0,63263.0,0.93776901]
[1726932487398,0.0045479,63264.0,63263.0,1.25390901]
[1726932487610,0.0045479,63264.0,63263.0,0.93776901]
[1726932488040,0.0045479,63264.0,63263.0,1.25390901]
[1726932491755,0.0045479,63264.0,63263.0,1.41696268]
[1726932492998,0.0035479,63264.0,63263.0,1.41696268]
[1726932495124,0.0035479,63264.0,63263.0,1.40696268]
[1726932495362,0.0035479,63264.0,63263.0,1.41896268]
[1726932496103,0.0035479,63264.0,63263.0,1.40996268]
[1726932496563,0.0035479,63264.0,63263.0,1.42096268]
[1726932500703,0.0035479,63264.0,63263.0,1.39796268]
[1726932500908,0.0035479,63264.0,63263.0,1.40996268]
[1726932502010,0.0035479,63264.0,63263.0,1.42296268]
[1726932502542,0.0035479,63264.0,63263.0,1.39796268]
[1726932502713,0.0035479,63264.0,63263.0,1.39961468]
[1726932503411,0.0035479,63264.0,63263.0,1.42461468]
[1726932504161,0.0035479,63264.0,63263.0,1.41261468]
[1726932505112,0.0035479,63264.0,63263.0,1.39961468]
[1726932505586,0.0035479,63264.0,63263.0,1.42061468]
[1726932505804,0.0035479,63264.0,63263.0,1.40961468]
[1726932506074,0.0035479,63264.0,63263.0,1.39961468]
[1726932506315,0.0035479,63264.0,63263.0,1.41061468]
[1726932506776,0.0035479,63264.0,63263.0,0.93142101]
[1726932506992,0.0035479,63264.0,63263.0,0.94142101]
[1726932507203,0.0035479,63264.0,63263.0,0.84992101]
[1726932511800,0.0035479,63264.0,63263.0,1.16606101]
[1726932512703,0.0035479,63264.0,63263.0,1.25806101]
[1726932516092,0.0035479,63264.0,63263.0,1.37914375]
[1726932519549,0.0035479,63264.0,63263.0,1.25806101]
[1726932519759,0.0035479,63264.0,63263.0,1.37914375]
[1726932521718,0.0035479,63264.0,63263.0,0.94192101]
[1726932522183,0.0035479,63264.0,63263.0,1.25806101]
[1726932522413,0.0035479,63264.0,63263.0,0.94192101]
[1726932522663,0.0035479,63264.0,63263.0,1.25806101]
[1726932523105,0.0035479,63264.0,63263.0,0.94192101]
[1726932524170,0.0035479,63264.0,63263.0,1.25806101]
[1726932525432,0.0035479,63264.0,63263.0,0.94192101]
[1726932534182,0.0035479,63264.0,63263.0,0.94313361]
[1726932535934,0.0035479,63264.0,63263.0,1.25927361]
[1726932536148,0.0035479,63264.0,63263.0,0.94313361]
[1726932536800,0.0035479,63264.0,63263.0,1.25927361]
[1726932543111,0.0035479,63264.0,63263.0,0.94313361]
[1726932544178,0.0035479,63264.0,63263.0,1.25927361]
[1726932546283,0.0035479,63264.0,63263.0,0.94313361]
[1726932552362,0.0035479,63264.0,63263.0,1.25927361]
[1726932552995,0.0035479,63264.0,63263.0,0.94313361]
[1726932553454,0.0035479,63264.0,63263.0,0.9408995]
[1726932560079,0.57251316,63264.0,63263.0,0.0355495]
[1726932560318,0.80891226,63264.0,63263.0,0.0355495]
[1726932560583,0.68782952,63264.0,63263.0,0.0355495]
[1726932560833,0.68782952,63264.0,63263.0,0.022652]
[1726932561082,0.68782952,63264.0,63263.0,0.011652]
[1726932561322,0.80617934,63264.0,63263.0,0.011652]
[1726932561802,0.80617934,63264.0,63263.0,0.01440726]
[1726932561803,0.68782952,63264.0,63263.0,0.01440726]
[1726932562292,0.68782952,63264.0,63263.0,0.00440726]
[1726932562543,0.80615525,63264.0,63263.0,0.00440726]
[1726932562785,0.80615525,63264.0,63263.0,0.00940726]
[1726932563285,0.80715525,63264.0,63263.0,0.00440726]
[1726932564042,0.80915525,63264.0,63263.0,0.001652]
[1726932564561,0.69082952,63264.0,63263.0,0.001652]
[1726932564803,0.21662752,63264.0,63263.0,0.159722]
[1726932565040,0.0065479,63264.0,63263.0,0.475862]
[1726932565300,0.05385544,63264.0,63263.0,0.48878533]
[1726932565561,0.05385544,63264.0,63263.0,0.17264533]
[1726932566008,0.05085544,63264.0,63263.0,0.17264533]
[1726932566489,0.05185544,63264.0,63263.0,0.17264533]
[1726932567001,0.05085544,63264.0,63263.0,0.17264533]
[1726932567235,0.05185544,63264.0,63263.0,0.17264533]
[1726932568733,0.0045479,63264.0,63263.0,0.17264533]
[1726932570910,0.0045479,63264.0,63263.0,0.92600807]
[1726932571170,0.0045479,63264.0,63263.0,0.80492533]
[1726932572325,0.0035479,63264.0,63263.0,0.80492533]
[1726932572539,0.0035479,63264.0,63263.0,0.48878533]
[1726932572749,0.0035479,63264.0,63263.0,0.18164533]
[1726932572750,0.05085544,63264.0,63263.0,0.18164533]
[1726932572958,0.05085357,63264.0,63263.0,0.17664533]
[1726932573171,0.0508531,63264.0,63263.0,0.17264533]
[1726932573383,0.0508531,63264.0,63263.0,0.17764533]
[1726932573600,0.0508531,63264.0,63263.0,0.17664533]
[1726932574026,0.0508531,63264.0,63263.0,0.17464533]
[1726932574239,0.0035479,63264.0,63263.0,0.17464533]
[1726932574453,0.0035479,63264.0,63263.0,0.17264533]
[1726932575754,0.0035479,63264.0,63263.0,0.17464533]
[1726932575968,0.0035479,63264.0,63263.0,0.17564533]
[1726932576853,0.0035479,63264.0,63263.0,0.01757533]
[1726932578169,0.0035479,63264.0,63263.0,0.17564533]
[1726932583152,0.0035479,63264.0,63263.0,0.52815011]
[1726932583399,0.0035479,63264.0,63263.0,1.36044807]
[1726932585894,0.0035479,63264.0,63263.0,1.23936533]
[1726932586778,0.05085817,63264.0,63263.0,1.23936533]
[1726932587689,0.05086726,63264.0,63263.0,1.23936533]
[1726932588131,0.0035479,63264.0,63263.0,1.23936533]
[1726932588766,0.05086726,63264.0,63263.0,1.23936533]
[1726932589034,0.05086726,63264.0,63263.0,0.90022533]
[1726932589268,0.05086726,63264.0,63263.0,0.58408533]
[1726932589490,0.05086726,63264.0,63263.0,0.90022533]
[1726932589921,0.0035479,63264.0,63263.0,0.90022533]
[1726932592738,0.05087652,63264.0,63263.0,0.90022533]
[1726932593209,0.0035479,63264.0,63263.0,0.90022533]
[1726932593422,0.05087695,63264.0,63263.0,0.90022533]
[1726932593633,0.0035479,63264.0,63263.0,0.90022533]
[1726932594746,0.05088082,63264.0,63263.0,0.90022533]
[1726932595169,0.0035479,63264.0,63263.0,0.90022533]
[1726932597434,0.05088629,63264.0,63263.0,0.90022533]
[1726932597651,0.0035479,63264.0,63263.0,0.90022533]
[1726932599562,0.07452694,63264.0,63263.0,0.90022533]
[1726932600034,0.07452694,63264.0,63263.0,0.9009231]
[1726932600791,0.05089334,63264.0,63263.0,0.9009231]
[1726932601280,0.07452694,63264.0,63263.0,0.9009231]
[1726932602831,0.0035479,63264.0,63263.0,0.9009231]
[1726932603056,0.07452694,63264.0,63263.0,0.9009231]
[1726932603480,0.0035479,63264.0,63263.0,0.9009231]
[1726932603896,0.07460254,63264.0,63263.0,0.9009231]
[1726932604355,0.07460636,63264.0,63263.0,0.9009231]
[1726932604775,0.07460811,63264.0,63263.0,0.9009231]
[1726932605213,0.07460811,63264.0,63263.0,0.5847831]
[1726932605435,0.0035479,63264.0,63263.0,0.5847831]
[1726932605648,0.09818663,63264.0,63263.0,0.5847831]
[1726932606119,0.21315945,63264.0,63263.0,0.9009231]
[1726932606349,0.0035479,63264.0,63263.0,0.9009231]
[1726932606559,0.09818663,63264.0,63263.0,0.9009231]
[1726932607238,0.07461313,63264.0,63263.0,0.9009231]
[1726932607899,0.30800941,63264.0,63263.0,0.9009231]
[1726932608125,0.07461509,63264.0,63263.0,0.9009231]
[1726932608374,0.30802616,63264.0,63263.0,0.9009231]
[1726932609075,0.0035479,63264.0,63263.0,0.9009231]
[1726932609306,0.21338477,63264.0,63263.0,0.9009231]
[1726932609520,0.3080235,63264.0,63263.0,0.9009231]
[1726932609728,0.21338477,63264.0,63263.0,0.9009231]
[1726932610375,0.3080235,63264.0,63263.0,0.9009231]
[1726932612948,0.21338477,63264.0,63263.0,0.5847831]
[1726932613159,0.30819384,63264.0,63263.0,0.5847831]
[1726932613591,0.30819384,63264.0,63263.0,0.4924831]
[1726932613802,0.30819384,63264.0,63263.0,0.8086231]
[1726932614018,0.30819384,63264.0,63263.0,0.4924831]
[1726932614434,0.21338477,63264.0,63263.0,0.4924831]
[1726932615517,0.30819871,63264.0,63263.0,0.4924831]
[1726932615959,0.21338477,63264.0,63263.0,0.4924831]
[1726932616404,0.21338477,63264.0,63263.0,0.9022231]
[1726932616406,0.30820098,63264.0,63263.0,0.9022231]
[1726932616914,0.30820083,63264.0,63263.0,0.9022231]
[1726932617367,0.21338477,63264.0,63263.0,0.9022231]
[1726932617604,0.30822341,63264.0,63263.0,0.9022231]
[1726932617831,0.30822341,63264.0,63263.0,0.91283258]
[1726932617832,0.21338477,63264.0,63263.0,0.91283258]
[1726932619422,0.30823593,63264.0,63263.0,0.91283258]
[1726932619651,0.21338477,63264.0,63263.0,0.91283258]
[1726932621303,0.30837319,63264.0,63263.0,0.91283258]
[1726932622139,0.21351998,63264.0,63263.0,0.91283258]
[1726932622871,0.30837319,63264.0,63263.0,0.91283258]
[1726932624308,0.21351998,63264.0,63263.0,0.91283258]
[1726932625040,0.3083784,63264.0,63263.0,0.91283258]
[1726932625516,0.30837739,63264.0,63263.0,0.91283258]
[1726932625748,0.21351998,63264.0,63263.0,0.91283258]
[1726932625968,0.33208402,63264.0,63263.0,0.91283258]
[1726932626192,0.33208402,63264.0,63263.0,1.05691532]
[1726932626193,0.0035479,63264.0,63263.0,1.05691532]
[1726932626672,0.21352026,63264.0,63263.0,1.05691532]
[1726932626905,0.21352026,63264.0,63263.0,0.93583258]
[1726932627139,0.30837713,63264.0,63263.0,0.93583258]
[1726932627850,0.21352026,63264.0,63263.0,0.93583258]
[1726932628292,0.21352026,63264.0,63263.0,0.91283258]
[1726932629018,0.30838278,63264.0,63263.0,0.91283258]
[1726932629250,0.21352026,63264.0,63263.0,0.91283258]
[1726932630415,0.30840095,63264.0,63263.0,0.59669258]
[1726932630884,0.30840095,63264.0,63263.0,0.28055258]
[1726932631138,0.30840095,63264.0,63263.0,0.59669258]
[1726932631385,0.33229371,63264.0,63263.0,0.59669258]
[1726932632075,0.21369254,63264.0,63263.0,0.59669258]
[1726932632317,0.21369254,63264.0,63263.0,0.28055258]
[1726932632577,0.33229371,63264.0,63263.0,0.50309258]
[1726932633984,0.21369254,63264.0,63263.0,0.50309258]
[1726932634527,0.33229371,63264.0,63263.0,0.50309258]
[1726932637659,0.21369254,63264.0,63263.0,0.93663258]
[1726932637876,0.30857659,63264.0,63263.0,0.93663258]
[1726932638321,0.30857848,63264.0,63263.0,0.93663258]
[1726932638995,0.33229371,63264.0,63263.0,0.93663258]
[1726932639452,0.33229371,63264.0,63263.0,1.25277258]
[1726932639453,0.30857826,63264.0,63263.0,1.25277258]
[1726932639673,0.0035479,63264.0,63263.0,1.41582625]
[1726932640179,0.05099235,63264.0,63263.0,1.41582625]
[1726932640415,0.07471613,63264.0,63263.0,1.41582625]
[1726932640626,0.07471613,63264.0,63263.0,1.41382625]
[1726932640627,0.05099037,63264.0,63263.0,1.41382625]
[1726932640838,0.05099037,63264.0,63263.0,1.53690899]
[1726932641298,0.0035479,63264.0,63263.0,1.53390899]
[1726932641521,0.0035479,63264.0,63263.0,1.54490899]
[1726932642424,0.21396087,63264.0,63263.0,1.54490899]
[1726932642872,0.0035479,63264.0,63263.0,1.54490899]
[1726932643084,0.0035479,63264.0,63263.0,1.53490899]
[1726932643514,0.0035479,63264.0,63263.0,1.54590899]
[1726932643725,0.0035479,63264.0,63263.0,1.54490899]
[1726932643909,0.0035479,63264.0,63263.0,1.55490899]
[1726932654568,0.0035479,63264.0,63263.0,1.5413535]
[1726932655018,0.0035479,63264.0,63263.0,1.5528235]
[1726932655459,0.0035479,63264.0,63263.0,1.55245596]
[1726932655952,0.0035479,63264.0,63263.0,1.54245596]
[1726932656400,0.0035479,63264.0,63263.0,1.55345596]
[1726932661012,0.0035479,63264.0,63263.0,1.43237322]
[1726932661239,0.0035479,63264.0,63263.0,0.93017955]
[1726932664175,0.0035479,63264.0,63263.0,0.51963955]
[1726932665644,0.0035479,63264.0,63263.0,0.20349955]
[1726932666116,0.0035479,63264.0,63263.0,0.04542955]
[1726932666349,0.1616149,63264.0,63263.0,0.04542955]
[1726932666799,0.20896988,63264.0,63263.0,0.04542955]
[1726932667267,0.20896988,63264.0,63263.0,0.02242955]
[1726932667790,0.20896988,63264.0,63263.0,0.02342955]
[1726932668861,0.20896988,63264.0,63263.0,0.02242955]
[1726932669307,0.20996988,63264.0,63263.0,0.02242955]
[1726932669785,0.20996161,63264.0,63263.0,0.02242955]
[1726932670038,0.20896161,63264.0,63263.0,0.02242955]
[1726932670375,0.52509661,63264.0,63263.0,0.02242955]
[1726932670641,1.60407427,63264.0,63263.0,0.02242955]
[1726932670870,1.58270749,63264.0,63263.0,0.01182007]
[1726932671100,1.82474763,63264.0,63263.0,0.01182007]
[1726932671373,1.82674763,63264.0,63263.0,0.01182007]
[1726932671592,1.97642076,63264.0,63263.0,0.01182007]
[1726932671848,2.14150634,63264.0,63263.0,0.01182007]
[1726932672069,2.13550634,63264.0,63263.0,0.01182007]
[1726932672313,1.97242076,63264.0,63263.0,0.01182007]
[1726932672543,1.97942076,63264.0,63263.0,0.01282007]
[1726932673013,1.97642076,63264.0,63263.0,0.01282007]
[1726932673227,1.98042076,63264.0,63263.0,0.01382007]
[1726932673929,1.97842076,63264.0,63263.0,0.01282007]
[1726932674157,1.97942076,63264.0,63263.0,0.01382007]
[1726932674387,1.47507357,63264.0,63263.0,0.01382007]
[1726932674616,2.13976755,63264.0,63263.0,0.01382007]
[1726932675291,2.28148998,63264.0,63263.0,0.01382007]
[1726932675515,2.1184044,63264.0,63263.0,0.01382007]
[1726932676203,1.8002694,63264.0,63263.0,0.01382007]
[1726932676425,1.27094207,63264.0,63263.0,0.01382007]
[1726932676666,1.06193857,63264.0,63263.0,0.01382007]
[1726932676893,1.3661302,63264.0,63263.0,0.01382007]
[1726932677117,1.36213355,63264.0,63263.0,0.01282007]
[1726932677346,1.27066062,63264.0,63263.0,0.01282007]
[1726932677862,1.27066062,63264.0,63263.0,0.01382007]
[1726932677863,1.36612348,63264.0,63263.0,0.01382007]
[1726932678117,1.36512348,63264.0,63263.0,0.01282007]
[1726932678586,1.36612348,63264.0,63263.0,0.01382007]
[1726932678816,1.36512348,63264.0,63263.0,0.01282007]
[1726932679105,1.27064179,63264.0,63263.0,0.01282007]
[1726932679323,1.2715999,63264.0,63263.0,0.01382007]
[1726932679592,0.74580357,63264.0,63263.0,0.01382007]
[1726932679838,1.12877191,63264.0,63263.0,0.01282007]
[1726932680325,0.74580357,63264.0,63263.0,0.01382007]
[1726932680547,0.0075479,63264.0,63263.0,0.01282007]
[1726932680777,0.0035479,63264.0,63263.0,0.01182007]
[1726932681009,0.0045479,63264.0,63263.0,0.02122682]
[1726932681212,0.0045479,63264.0,63263.0,0.02222682]
[1726932681213,0.0085479,63264.0,63263.0,0.02222682]
[1726932681447,0.1666149,63264.0,63263.0,0.01382007]
[1726932681648,0.0035479,63264.0,63263.0,0.01182007]
[1726932681838,0.0035479,63264.0,63263.0,0.02022682]
[1726932682073,0.0045479,63264.0,63263.0,0.02022682]
[1726932682294,0.0035479,63264.0,63263.0,0.02022682]
[1726932683173,0.0075479,63264.0,63263.0,0.02022682]
[1726932683813,0.0045479,63264.0,63263.0,0.02022682]
[1726932684281,0.0075479,63264.0,63263.0,0.02022682]
[1726932693661,0.1656149,63264.0,63263.0,0.02022682]
[1726932694126,0.60283264,63264.0,63263.0,0.01182007]
[1726932694400,0.91896764,63264.0,63263.0,0.01182007]
[1726932694647,1.39815631,63264.0,63263.0,0.02019099]
[1726932694858,1.60759265,63264.0,63263.0,0.01182007]
[1726932695465,1.72560877,63264.0,63263.0,0.01182007]
[1726932696095,1.60452603,63264.0,63263.0,0.01182007]
[1726932696310,1.60759265,63264.0,63263.0,0.01182007]
[1726932696728,1.70201403,63264.0,63263.0,0.01182007]
[1726932696930,1.60759265,63264.0,63263.0,0.01182007]
[1726932697397,0.69118624,63264.0,63263.0,0.01182007]
[1726932697616,0.52896513,63264.0,63263.0,0.01182007]
[1726932698020,0.52896513,63264.0,63263.0,0.0202038]
[1726932699741,0.4817499,63264.0,63263.0,0.0202038]
[1726932700388,0.55257188,63264.0,63263.0,0.0202038]
[1726932700591,0.4817499,63264.0,63263.0,0.0202038]
[1726932701202,0.55257188,63264.0,63263.0,0.0202038]
[1726932702482,0.55157188,63264.0,63263.0,0.0202038]
[1726932703124,0.4807499,63264.0,63263.0,0.0202038]
[1726932703356,0.7850175,63264.0,63263.0,0.0202038]
[1726932703566,0.69058955,63264.0,63263.0,0.0087108]
[1726932703775,0.158071,63263.0,63259.0,0.159731]
[1726932703984,0.04724838,63261.0,63259.0,0.159731]
[1726932704203,0.04724838,63262.0,63259.0,0.159731]
[1726932704419,0.04724838,63261.0,63259.0,0.001652]
[1726932705302,0.04724838,63260.0,63259.0,0.001652]
[1726932706767,0.07087257,63261.0,63259.0,0.001652]
[1726932706972,0.07087257,63260.0,63259.0,0.001652]
[1726932707210,0.07087257,63260.0,63259.0,0.003652]
[1726932707412,0.07087257,63261.0,63259.0,0.003652]
[1726932707621,0.07087257,63261.0,63259.0,0.001652]
[1726932708314,0.07087257,63261.0,63259.0,0.002652]
[1726932708795,0.07087257,63261.0,63259.0,0.001652]
[1726932709017,0.07293513,63261.0,63259.0,0.001652]
[1726932709263,0.07093513,63260.0,63259.0,0.001652]
[1726932711255,0.09458017,63261.0,63259.0,0.001652]
[1726932711466,0.001,63260.0,63259.0,0.001652]
[1726932712135,0.09458017,63261.0,63259.0,0.001652]
[1726932712354,0.158077,63260.0,63259.0,0.001652]
[1726932712575,0.30468458,63260.0,63259.0,0.001652]
[1726932713237,0.46276158,63260.0,63259.0,0.001652]
[1726932713446,0.30468458,63260.0,63259.0,0.001652]
[1726932713932,0.30480852,63260.0,63259.0,0.001652]
[1726932714367,0.46288552,63260.0,63259.0,0.001652]
[1726932715232,0.46388552,63260.0,63259.0,0.001652]
[1726932716558,0.59777728,63260.0,63259.0,0.001652]
[1726932716777,0.46388552,63260.0,63259.0,0.001652]
[1726932717230,0.36925476,63260.0,63259.0,0.001652]
[1726932717491,0.21117776,63260.0,63259.0,0.475892]
[1726932717680,0.09566611,63260.0,63259.0,0.159732]
[1726932717908,0.30584387,63260.0,63259.0,0.159732]
[1726932718134,0.30584387,63260.0,63259.0,0.001652]
[1726932718825,0.30607523,63260.0,63259.0,0.159732]
[1726932719049,0.21139858,63260.0,63259.0,0.001652]
[1726932720345,0.32974439,63260.0,63259.0,0.001652]
[1726932720566,0.32974439,63260.0,63259.0,0.159732]
[1726932720988,0.32974439,63260.0,63259.0,0.001652]
[1726932722314,0.21139858,63260.0,63259.0,0.001652]
[1726932722542,0.21161681,63260.0,63259.0,0.001652]
[1726932724605,0.21161681,63260.0,63259.0,1.05225678]
[1726932724817,0.33009089,63260.0,63259.0,0.905752]
[1726932725023,0.30639804,63260.0,63259.0,0.905752]
[1726932725462,0.21161681,63260.0,63259.0,0.905752]
[1726932725683,0.21061681,63260.0,63259.0,0.987352]
[1726932725913,0.09478123,63261.0,63260.0,0.474232]
[1726932726146,0.09478123,63261.0,63260.0,0.564932]
[1726932726613,0.30575581,63261.0,63260.0,0.881087]
[1726932726851,0.09478123,63261.0,63260.0,0.881087]
[1726932728114,0.09478123,63261.0,63260.0,0.882087]
[1726932730274,0.30575581,63261.0,63260.0,0.882087]
[1726932731034,0.09478123,63261.0,63260.0,0.882087]
[1726932731293,0.30575581,63261.0,63260.0,0.882087]
[1726932731556,0.09478123,63261.0,63260.0,0.882087]
[1726932731792,0.30575581,63261.0,63260.0,0.882087]
[1726932732028,0.09478123,63261.0,63260.0,0.882087]
[1726932732904,0.30575581,63261.0,63260.0,0.882087]
[1726932733371,0.09478123,63261.0,63260.0,0.882087]
[1726932733589,0.21097458,63261.0,63260.0,0.72401]
[1726932733814,0.33002982,63262.0,63261.0,0.474225]
[1726932734034,0.33004605,63262.0,63261.0,0.474225]
[1726932735367,0.33104605,63262.0,63261.0,0.474225]
[1726932737408,0.33097613,63262.0,63261.0,0.474225]
[1726932739471,0.33097613,63262.0,63261.0,0.158075]
[1726932739713,0.21254084,63262.0,63261.0,0.158075]
[1726932739934,0.21254084,63262.0,63261.0,0.474225]
[1726932745327,0.21254084,63262.0,63260.0,0.248776]
[1726932745543,0.001,63262.0,63261.0,0.158075]
[1726932745812,0.2126045,63262.0,63261.0,0.158075]
[1726932746694,0.2116045,63262.0,63261.0,0.158075]
[1726932746915,0.2116045,63262.0,63261.0,0.159727]
[1726932747145,0.2126045,63262.0,63261.0,0.159727]
[1726932747366,0.2126045,63262.0,63261.0,0.001652]
[1726932747580,0.3706765,63262.0,63261.0,0.001652]
[1726932748070,0.51179884,63262.0,63261.0,0.001652]
[1726932748318,0.3696765,63262.0,63261.0,0.001652]
[1726932748573,0.3706765,63262.0,63261.0,0.001652]
[1726932748823,0.6868215,63262.0,63261.0,0.001652]
[1726932749815,0.6858215,63262.0,63261.0,0.001652]
[1726932750306,0.6888215,63262.0,63261.0,0.001652]
[1726932750538,0.6898215,63262.0,63261.0,0.002652]
[1726932750767,0.6858215,63262.0,63261.0,0.001652]
[1726932751015,0.6908215,63262.0,63261.0,0.001652]
[1726932751704,0.83294384,63262.0,63261.0,0.001652]
[1726932752677,1.46613864,63262.0,63261.0,0.001652]
[1726932753421,1.59716809,63262.0,63261.0,0.001652]
[1726932753886,1.46613864,63262.0,63261.0,0.001652]
[1726932759293,2.45301628,63262.0,63261.0,0.001652]
[1726932759558,2.29312864,63262.0,63261.0,0.001652]
[1726932760288,1.74407974,63260.0,63259.0,0.001652]
[1726932760507,2.57794196,63260.0,63259.0,0.001652]
[1726932761849,2.57244179,63260.0,63259.0,0.001652]
[1726932763192,2.57944179,63260.0,63259.0,0.002652]
[1726932763646,2.59344179,63260.0,63259.0,0.003652]
[1726932766759,2.59290676,63260.0,63259.0,0.003652]
[1726932768341,2.75202152,63260.0,63259.0,0.003652]
[1726932769913,2.59273573,63260.0,63259.0,0.003652]
[1726932771828,2.5928342,63260.0,63259.0,0.003652]
[1726932773174,1.108665,63253.0,63252.0,0.001652]
[1726932773386,1.70180775,63253.0,63252.0,0.001652]
[1726932774518,1.81610775,63253.0,63252.0,0.003652]
[1726932774984,1.69302501,63253.0,63252.0,0.003652]
[1726932775213,1.81410775,63253.0,63252.0,0.003652]
[1726932775428,1.97919333,63253.0,63252.0,0.003652]
[1726932775635,1.83126149,63253.0,63252.0,0.003652]
[1726932775920,1.73296149,63253.0,63252.0,0.003652]
[1726932776139,1.71580775,63253.0,63252.0,0.003652]
[1726932776611,1.71738783,63253.0,63252.0,0.003652]
[1726932776823,1.71538783,63253.0,63252.0,0.003652]
[1726932778556,1.71738783,63253.0,63252.0,0.003652]
[1726932779452,1.87847341,63253.0,63252.0,0.003652]
[1726932779705,1.88047341,63253.0,63252.0,0.003652]
[1726932780330,1.87847341,63253.0,63252.0,0.003652]
[1726932780561,1.71538783,63253.0,63252.0,0.003652]
[1726932780773,1.71738783,63253.0,63252.0,0.003652]
[1726932781014,1.71742795,63253.0,63252.0,0.003652]
[1726932781655,1.71542795,63253.0,63252.0,0.003652]
[1726932784320,1.71742795,63253.0,63252.0,0.003652]
[1726932784566,1.87851353,63253.0,63252.0,0.003652]
[1726932786421,1.71542795,63253.0,63252.0,0.003652]
[1726932789392,1.71742795,63253.0,63252.0,0.003652]
[1726932789642,1.71542795,63253.0,63252.0,0.003652]
[1726932790357,1.71554627,63253.0,63252.0,0.003652]
[1726932791089,1.71754627,63253.0,63252.0,0.003652]
[1726932791342,2.02219138,63253.0,63252.0,0.003652]